[Event "Early-Titled-Tuesday-Blitz-February-27-2024"]
[Site "Chess.com"]
[Date "2024.02.27"]
[Round "10"]
[White "Makswolf200817"]
[Black "Sina_Movahed"]
[Result "0-1"]
[WhiteElo "2753"]
[BlackElo "2961"]
[TimeControl "180+1"]
[EndTime "9:55:12 PST"]
[Termination "Sina_Movahed won on time"]

1. d4 {[%clk 0:03:00.9]} 1... Nf6 {[%clk 0:02:59.5]} 2. c4 {[%clk 0:03:01.6]}
2... g6 {[%clk 0:02:59.5]} 3. g3 {[%clk 0:03:02.2]} 3... Bg7 {[%clk 0:03:00.1]}
4. Bg2 {[%clk 0:03:02.9]} 4... O-O {[%clk 0:03:00.9]} 5. Nc3 {[%clk 0:03:03.6]}
5... d6 {[%clk 0:03:01.6]} 6. Nf3 {[%clk 0:03:04.4]} 6... Nbd7 {[%clk
0:03:02.2]} 7. O-O {[%clk 0:03:04.7]} 7... e5 {[%clk 0:03:02.9]} 8. e4 {[%clk
0:03:05.2]} 8... exd4 {[%clk 0:03:03.1]} 9. Nxd4 {[%clk 0:03:06.1]} 9... Re8
{[%clk 0:03:03.9]} 10. h3 {[%clk 0:03:06.2]} 10... Nc5 {[%clk 0:03:04.5]} 11.
Re1 {[%clk 0:03:06.8]} 11... h6 {[%clk 0:03:05.2]} 12. Rb1 {[%clk 0:02:54.9]}
12... c6 {[%clk 0:03:03.8]} 13. b3 {[%clk 0:02:52.6]} 13... a5 {[%clk
0:03:03.6]} 14. Rb2 {[%clk 0:02:52.1]} 14... h5 {[%clk 0:03:02.2]} 15. Bf4
{[%clk 0:02:41.4]} 15... h4 {[%clk 0:02:58.6]} 16. g4 {[%clk 0:02:39.1]} 16...
a4 {[%clk 0:02:52.3]} 17. Rd2 {[%clk 0:02:33.9]} 17... axb3 {[%clk 0:02:51.4]}
18. axb3 {[%clk 0:02:34.3]} 18... Qa5 {[%clk 0:02:47.7]} 19. Ra2 {[%clk
0:02:14.2]} 19... Qxc3 {[%clk 0:02:46.4]} 20. Rxa8 {[%clk 0:02:14.2]} 20... Bxg4
{[%clk 0:02:04.8]} 21. Rxe8+ {[%clk 0:01:52]} 21... Nxe8 {[%clk 0:02:05.7]} 22.
hxg4 {[%clk 0:01:49.8]} 22... Bxd4 {[%clk 0:02:06.1]} 23. Be3 {[%clk 0:01:30.7]}
23... Bxe3 {[%clk 0:02:01.4]} 24. Rxe3 {[%clk 0:01:31.6]} 24... Qe5 {[%clk
0:02:01.8]} 25. b4 {[%clk 0:01:27.6]} 25... Ne6 {[%clk 0:02:01.5]} 26. Bf1
{[%clk 0:01:22.6]} 26... Nf6 {[%clk 0:01:52.7]} 27. Ra3 {[%clk 0:01:03.2]} 27...
Kg7 {[%clk 0:01:50.9]} 28. Bg2 {[%clk 0:00:58.9]} 28... Kh7 {[%clk 0:01:28.8]}
29. Rf3 {[%clk 0:00:40.9]} 29... Ng5 {[%clk 0:01:24.1]} 30. Re3 {[%clk
0:00:38.1]} 30... Qf4 {[%clk 0:01:22.8]} 31. Rd3 {[%clk 0:00:09.8]} 31... Nxg4
{[%clk 0:01:18.7]} 32. Qe1 {[%clk 0:00:08.9]} 32... h3 {[%clk 0:01:12.7]} 33.
Rg3 {[%clk 0:00:03.3]} 33... hxg2 {[%clk 0:01:11.3]} 34. Qe2 {[%clk 0:00:04]}
34... Ne5 {[%clk 0:01:03.4]} 35. c5 {[%clk 0:00:04.4]} 35... dxc5 {[%clk
0:00:57]} 36. bxc5 {[%clk 0:00:05.3]} 36... Kg7 {[%clk 0:00:53.2]} 37. Kxg2
{[%clk 0:00:05.3]} 37... Ne6 {[%clk 0:00:50.8]} 38. Qe3 {[%clk 0:00:05]} 38...
Qf6 {[%clk 0:00:50.9]} 39. Qc3 {[%clk 0:00:03.4]} 39... Nf4+ {[%clk 0:00:50.6]}
40. Kf1 {[%clk 0:00:04.1]} 40... Kg8 {[%clk 0:00:49.2]} 41. Qd2 {[%clk
0:00:03.5]} 41... Qh4 {[%clk 0:00:48.2]} 42. Kg1 {[%clk 0:00:01.8]} 42... Nh3+
{[%clk 0:00:44.9]} 43. Kg2 {[%clk 0:00:01.9]} 43... Qxe4+ {[%clk 0:00:42.9]} 44.
Kh2 {[%clk 0:00:02]} 44... Nf3+ {[%clk 0:00:36.9]} 0-1

[Event "Early-Titled-Tuesday-Blitz-February-27-2024"]
[Site "Chess.com"]
[Date "2024.02.27"]
[Round "10"]
[White "regenda"]
[Black "Zampronha1971"]
[Result "1-0"]
[WhiteElo "2261"]
[BlackElo "2339"]
[TimeControl "180+1"]
[EndTime "9:55:16 PST"]
[Termination "regenda won on time"]

1. e4 {[%clk 0:03:00.9]} 1... c5 {[%clk 0:02:52.2]} 2. Be2 {[%clk 0:02:52.7]}
2... e6 {[%clk 0:02:51.7]} 3. f4 {[%clk 0:02:51.7]} 3... Nc6 {[%clk 0:02:51.8]}
4. Nf3 {[%clk 0:02:51.5]} 4... d5 {[%clk 0:02:52.4]} 5. d3 {[%clk 0:02:51.8]}
5... Nf6 {[%clk 0:02:50.2]} 6. e5 {[%clk 0:02:48.4]} 6... Nd7 {[%clk 0:02:50.1]}
7. O-O {[%clk 0:02:47.4]} 7... Be7 {[%clk 0:02:49.7]} 8. c4 {[%clk 0:02:47.2]}
8... O-O {[%clk 0:02:48.8]} 9. cxd5 {[%clk 0:02:45.4]} 9... exd5 {[%clk
0:02:48.5]} 10. Nc3 {[%clk 0:02:44.3]} 10... Nb6 {[%clk 0:02:47.5]} 11. Qe1
{[%clk 0:02:44.1]} 11... d4 {[%clk 0:02:43.2]} 12. Ne4 {[%clk 0:02:43]} 12...
Nd5 {[%clk 0:02:43.8]} 13. Qg3 {[%clk 0:02:41]} 13... f5 {[%clk 0:02:22.5]} 14.
exf6 {[%clk 0:02:30.4]} 14... Nxf6 {[%clk 0:02:22.8]} 15. Bd2 {[%clk 0:02:13.2]}
15... Nxe4 {[%clk 0:02:22]} 16. dxe4 {[%clk 0:02:14.1]} 16... d3 {[%clk
0:02:20.8]} 17. Bd1 {[%clk 0:02:13.8]} 17... c4 {[%clk 0:02:16.6]} 18. Bc3
{[%clk 0:02:06.2]} 18... Bc5+ {[%clk 0:02:16.4]} 19. Kh1 {[%clk 0:02:04.8]}
19... Nd4 {[%clk 0:02:16.6]} 20. b3 {[%clk 0:01:53.5]} 20... b5 {[%clk
0:02:07.7]} 21. bxc4 {[%clk 0:01:43.9]} 21... bxc4 {[%clk 0:02:07.2]} 22. Ne5
{[%clk 0:01:34]} 22... Bb7 {[%clk 0:01:57.9]} 23. Nxc4 {[%clk 0:01:27]} 23...
Bxe4 {[%clk 0:01:53.1]} 24. Ne5 {[%clk 0:01:15.9]} 24... Nf5 {[%clk 0:01:42.5]}
25. Qe1 {[%clk 0:01:11.8]} 25... Qd5 {[%clk 0:01:42.7]} 26. Bf3 {[%clk
0:01:08.7]} 26... Bxf3 {[%clk 0:01:35.5]} 27. Rxf3 {[%clk 0:01:09.6]} 27... Rfe8
{[%clk 0:01:08.3]} 28. Rxd3 {[%clk 0:01:00.8]} 28... Qe6 {[%clk 0:00:40.9]} 29.
Qd2 {[%clk 0:00:43.5]} 29... Qh6 {[%clk 0:00:38.4]} 30. Rb1 {[%clk 0:00:33]}
30... Rad8 {[%clk 0:00:37]} 31. g4 {[%clk 0:00:25.1]} 31... Ng3+ {[%clk
0:00:33.7]} 32. Kg2 {[%clk 0:00:24.6]} 32... Rxd3 {[%clk 0:00:09.8]} 33. Qxd3
{[%clk 0:00:24.7]} 33... Qxf4 {[%clk 0:00:05.8]} 34. Qxg3 {[%clk 0:00:23.5]}
34... Qe4+ {[%clk 0:00:06.1]} 35. Qf3 {[%clk 0:00:12.9]} 35... Qxb1 {[%clk
0:00:07]} 36. Qf7+ {[%clk 0:00:12.7]} 36... Kh8 {[%clk 0:00:06.9]} 37. Qxe8+
{[%clk 0:00:13.3]} 1-0

[Event "Early-Titled-Tuesday-Blitz-February-27-2024"]
[Site "Chess.com"]
[Date "2024.02.27"]
[Round "10"]
[White "annacramling"]
[Black "Chernov_Alexander_A"]
[Result "0-1"]
[WhiteElo "2113"]
[BlackElo "2324"]
[TimeControl "180+1"]
[EndTime "9:55:16 PST"]
[Termination "Chernov_Alexander_A won on time"]

1. e3 {[%clk 0:03:00.9]} 1... d5 {[%clk 0:02:57.5]} 2. d3 {[%clk 0:03:00.4]}
2... e5 {[%clk 0:02:52.8]} 3. Ne2 {[%clk 0:02:59.6]} 3... Nf6 {[%clk 0:02:52.5]}
4. Nd2 {[%clk 0:02:51.8]} 4... Nc6 {[%clk 0:02:50.5]} 5. Nb3 {[%clk 0:02:49.4]}
5... Bd6 {[%clk 0:02:44.6]} 6. Ng3 {[%clk 0:02:47.7]} 6... h5 {[%clk 0:02:42.7]}
7. h4 {[%clk 0:02:46.8]} 7... g6 {[%clk 0:02:29.8]} 8. e4 {[%clk 0:02:40.6]}
8... d4 {[%clk 0:02:27.1]} 9. Bg5 {[%clk 0:02:30.9]} 9... Be7 {[%clk 0:02:26.3]}
10. c3 {[%clk 0:02:13.4]} 10... Ng4 {[%clk 0:02:14.8]} 11. Qd2 {[%clk
0:01:59.6]} 11... a5 {[%clk 0:02:08.4]} 12. Bxe7 {[%clk 0:01:51.5]} 12... Qxe7
{[%clk 0:02:07.6]} 13. cxd4 {[%clk 0:01:50]} 13... a4 {[%clk 0:02:07]} 14. Nc1
{[%clk 0:01:02.9]} 14... Nxd4 {[%clk 0:02:05.5]} 15. Nce2 {[%clk 0:01:01.6]}
15... Qc5 {[%clk 0:01:44.5]} 16. Nxd4 {[%clk 0:00:54]} 16... Qxd4 {[%clk
0:01:44.4]} 17. Rc1 {[%clk 0:00:51.2]} 17... c6 {[%clk 0:01:37.6]} 18. Rc4
{[%clk 0:00:50.4]} 18... Qd6 {[%clk 0:01:34.6]} 19. Be2 {[%clk 0:00:44.3]} 19...
Be6 {[%clk 0:01:32.6]} 20. Rb4 {[%clk 0:00:35.4]} 20... b5 {[%clk 0:01:22.4]}
21. d4 {[%clk 0:00:35.3]} 21... O-O {[%clk 0:01:13.7]} 22. d5 {[%clk 0:00:30.4]}
22... cxd5 {[%clk 0:01:12.7]} 23. Rxb5 {[%clk 0:00:29]} 23... d4 {[%clk
0:01:08.5]} 24. O-O {[%clk 0:00:21]} 24... Bxa2 {[%clk 0:01:01.2]} 25. Bxg4
{[%clk 0:00:19.9]} 25... hxg4 {[%clk 0:01:01.1]} 26. Qg5 {[%clk 0:00:20.2]}
26... Rfe8 {[%clk 0:00:43.9]} 27. Nf5 {[%clk 0:00:10.4]} 27... Qe6 {[%clk
0:00:27.6]} 28. Rb6 {[%clk 0:00:09.6]} 28... Qxb6 {[%clk 0:00:24.7]} 29. Ne7+
{[%clk 0:00:03.9]} 29... Rxe7 {[%clk 0:00:21.3]} 30. Qxe7 {[%clk 0:00:04.2]}
30... Qe6 {[%clk 0:00:20.1]} 31. Qg5 {[%clk 0:00:02.5]} 31... Kg7 {[%clk
0:00:18.8]} 32. f4 {[%clk 0:00:02.3]} 32... f6 {[%clk 0:00:17.8]} 33. f5 {[%clk
0:00:01.4]} 33... fxg5 {[%clk 0:00:17]} 34. fxe6 {[%clk 0:00:02]} 34... Bxe6
{[%clk 0:00:16.9]} 35. hxg5 {[%clk 0:00:02.1]} 35... Rf8 {[%clk 0:00:16.4]} 36.
Rc1 {[%clk 0:00:01.9]} 36... Rb8 {[%clk 0:00:15.9]} 37. Rc7+ {[%clk 0:00:01.8]}
37... Bf7 {[%clk 0:00:15.8]} 38. Ra7 {[%clk 0:00:01.2]} 38... Rb4 {[%clk
0:00:15.7]} 0-1

[Event "Early-Titled-Tuesday-Blitz-February-27-2024"]
[Site "Chess.com"]
[Date "2024.02.27"]
[Round "10"]
[White "Adar_07"]
[Black "SaiAgni_98"]
[Result "1-0"]
[WhiteElo "2774"]
[BlackElo "2557"]
[TimeControl "180+1"]
[EndTime "9:55:17 PST"]
[Termination "Adar_07 won on time"]

1. d4 {[%clk 0:03:00.9]} 1... d6 {[%clk 0:02:59.6]} 2. e4 {[%clk 0:02:58.1]}
2... Nf6 {[%clk 0:03:00.5]} 3. Nc3 {[%clk 0:02:56.3]} 3... Nbd7 {[%clk
0:03:01.1]} 4. Bg5 {[%clk 0:02:55.1]} 4... e5 {[%clk 0:02:59.9]} 5. dxe5 {[%clk
0:02:55.2]} 5... dxe5 {[%clk 0:02:59.6]} 6. Bc4 {[%clk 0:02:53.5]} 6... c6
{[%clk 0:02:59.1]} 7. Nf3 {[%clk 0:02:52.2]} 7... Qb6 {[%clk 0:02:52.4]} 8. Bb3
{[%clk 0:02:46.9]} 8... Be7 {[%clk 0:02:48.6]} 9. Nh4 {[%clk 0:02:40.9]} 9...
Nc5 {[%clk 0:02:46]} 10. O-O {[%clk 0:02:32.1]} 10... Nxb3 {[%clk 0:02:38.4]}
11. axb3 {[%clk 0:02:31.3]} 11... h6 {[%clk 0:02:34.8]} 12. Be3 {[%clk
0:02:30.2]} 12... Qc7 {[%clk 0:02:30.4]} 13. Nf5 {[%clk 0:02:29.8]} 13... Bxf5
{[%clk 0:02:28.2]} 14. exf5 {[%clk 0:02:30.7]} 14... O-O {[%clk 0:02:26.2]} 15.
Qf3 {[%clk 0:02:22]} 15... Rfd8 {[%clk 0:02:08.8]} 16. Rfd1 {[%clk 0:02:14.1]}
16... a5 {[%clk 0:02:04.4]} 17. g4 {[%clk 0:02:12.3]} 17... Bb4 {[%clk
0:01:47.5]} 18. Ne4 {[%clk 0:02:02.8]} 18... Nxe4 {[%clk 0:01:44.4]} 19. Qxe4
{[%clk 0:02:03.7]} 19... f6 {[%clk 0:01:41.3]} 20. c3 {[%clk 0:01:59.8]} 20...
Bf8 {[%clk 0:01:32.1]} 21. h4 {[%clk 0:01:55.1]} 21... b5 {[%clk 0:01:29.8]} 22.
Kg2 {[%clk 0:01:51.6]} 22... Rd7 {[%clk 0:01:24.2]} 23. Rxd7 {[%clk 0:01:35.8]}
23... Qxd7 {[%clk 0:01:25.1]} 24. g5 {[%clk 0:01:34.8]} 24... Qd5 {[%clk
0:01:18]} 25. f3 {[%clk 0:01:29]} 25... Qxb3 {[%clk 0:01:04.7]} 26. Kg3 {[%clk
0:01:08.6]} 26... Qd5 {[%clk 0:01:00.7]} 27. Qg4 {[%clk 0:00:41.9]} 27... hxg5
{[%clk 0:00:41.8]} 28. hxg5 {[%clk 0:00:42.8]} 28... fxg5 {[%clk 0:00:42.3]} 29.
Rh1 {[%clk 0:00:39.7]} 29... e4 {[%clk 0:00:35]} 30. fxe4 {[%clk 0:00:40.6]}
30... Bd6+ {[%clk 0:00:32.9]} 31. Kf3 {[%clk 0:00:41]} 31... Qb3 {[%clk
0:00:19.7]} 32. Bd4 {[%clk 0:00:25.1]} 32... Re8 {[%clk 0:00:15.9]} 33. Qxg5
{[%clk 0:00:20.6]} 33... Qf7 {[%clk 0:00:16]} 34. Qh4 {[%clk 0:00:18.7]} 34...
Kf8 {[%clk 0:00:07.8]} 35. f6 {[%clk 0:00:16.4]} 35... gxf6 {[%clk 0:00:06.6]}
36. Bxf6 {[%clk 0:00:17.3]} 36... Re6 {[%clk 0:00:02.2]} 37. e5 {[%clk
0:00:16.1]} 37... Bxe5 {[%clk 0:00:02.2]} 38. Qh8+ {[%clk 0:00:16.4]} 38... Qg8
{[%clk 0:00:02.6]} 39. Bxe5 {[%clk 0:00:16.7]} 1-0

[Event "Early-Titled-Tuesday-Blitz-February-27-2024"]
[Site "Chess.com"]
[Date "2024.02.27"]
[Round "10"]
[White "chucksterf10"]
[Black "Fandorine"]
[Result "0-1"]
[WhiteElo "2568"]
[BlackElo "2877"]
[TimeControl "180+1"]
[EndTime "9:55:21 PST"]
[Termination "Fandorine won by resignation"]

1. d4 {[%clk 0:02:55.6]} 1... d5 {[%clk 0:02:57.8]} 2. c4 {[%clk 0:02:55.9]}
2... e5 {[%clk 0:02:58.3]} 3. dxe5 {[%clk 0:02:56.1]} 3... Ne7 {[%clk
0:02:58.7]} 4. cxd5 {[%clk 0:02:53.1]} 4... Qxd5 {[%clk 0:02:57.4]} 5. Qxd5
{[%clk 0:02:36.5]} 5... Nxd5 {[%clk 0:02:58.3]} 6. a3 {[%clk 0:02:37.1]} 6...
Nc6 {[%clk 0:02:55.1]} 7. Nf3 {[%clk 0:02:37.2]} 7... Bg4 {[%clk 0:02:50.9]} 8.
e4 {[%clk 0:02:37.2]} 8... Nb6 {[%clk 0:02:49.1]} 9. Bb5 {[%clk 0:02:36.3]} 9...
O-O-O {[%clk 0:02:45.6]} 10. Bg5 {[%clk 0:02:32]} 10... Be7 {[%clk 0:02:28.9]}
11. Bxc6 {[%clk 0:02:26.5]} 11... Bxg5 {[%clk 0:02:26.9]} 12. Bb5 {[%clk
0:02:11.3]} 12... Bxf3 {[%clk 0:02:12.6]} 13. gxf3 {[%clk 0:02:12.2]} 13... Bf4
{[%clk 0:02:13.1]} 14. Nc3 {[%clk 0:02:08.5]} 14... Bxe5 {[%clk 0:02:12.8]} 15.
Ke2 {[%clk 0:02:06.7]} 15... c6 {[%clk 0:02:10.6]} 16. Bd3 {[%clk 0:02:06.2]}
16... Bxc3 {[%clk 0:01:58.7]} 17. bxc3 {[%clk 0:02:07.1]} 17... Na4 {[%clk
0:01:59.3]} 18. Rhc1 {[%clk 0:02:02.2]} 18... Kc7 {[%clk 0:01:57.4]} 19. Rab1
{[%clk 0:02:00.2]} 19... Nc5 {[%clk 0:01:56.5]} 20. Bc2 {[%clk 0:01:58.3]} 20...
Rd6 {[%clk 0:01:54.5]} 21. Rb4 {[%clk 0:01:44.3]} 21... Rhd8 {[%clk 0:01:52.7]}
22. Rd1 {[%clk 0:01:44.9]} 22... Rxd1 {[%clk 0:01:49.2]} 23. Bxd1 {[%clk
0:01:45.8]} 23... Ne6 {[%clk 0:01:48.1]} 24. Bc2 {[%clk 0:01:39.5]} 24... a5
{[%clk 0:01:44.8]} 25. Rb1 {[%clk 0:01:37.6]} 25... Nf4+ {[%clk 0:01:41.8]} 26.
Ke3 {[%clk 0:01:37.5]} 26... g5 {[%clk 0:01:42.2]} 27. Rg1 {[%clk 0:01:33]}
27... h6 {[%clk 0:01:31.6]} 28. h4 {[%clk 0:01:32.9]} 28... f6 {[%clk
0:01:28.2]} 29. Rg4 {[%clk 0:00:57.2]} 29... Ng6 {[%clk 0:01:13.7]} 30. hxg5
{[%clk 0:00:50.2]} 30... hxg5 {[%clk 0:01:13.6]} 31. Rg1 {[%clk 0:00:47.5]}
31... Rh8 {[%clk 0:01:13.3]} 32. Bb3 {[%clk 0:00:40.4]} 32... Kd6 {[%clk
0:01:05]} 33. Rd1+ {[%clk 0:00:38.2]} 33... Ke7 {[%clk 0:01:04.8]} 34. Bc4
{[%clk 0:00:35.3]} 34... Ne5 {[%clk 0:00:57]} 35. Be2 {[%clk 0:00:34.8]} 35...
b5 {[%clk 0:00:50.1]} 36. a4 {[%clk 0:00:30.5]} 36... b4 {[%clk 0:00:38.5]} 37.
cxb4 {[%clk 0:00:31.4]} 37... axb4 {[%clk 0:00:39.2]} 38. a5 {[%clk 0:00:32.1]}
38... Ra8 {[%clk 0:00:37.1]} 39. a6 {[%clk 0:00:32]} 39... c5 {[%clk 0:00:37.7]}
40. Bb5 {[%clk 0:00:17.7]} 40... Rb8 {[%clk 0:00:19.8]} 41. a7 {[%clk
0:00:16.4]} 41... Ra8 {[%clk 0:00:20.3]} 42. Ra1 {[%clk 0:00:17]} 42... b3
{[%clk 0:00:20.8]} 43. f4 {[%clk 0:00:16.2]} 43... gxf4+ {[%clk 0:00:19.6]} 44.
Kxf4 {[%clk 0:00:17.1]} 44... c4 {[%clk 0:00:19.5]} 45. Ke3 {[%clk 0:00:16.6]}
45... c3 {[%clk 0:00:18.4]} 46. f4 {[%clk 0:00:16.9]} 46... b2 {[%clk
0:00:17.5]} 47. Rb1 {[%clk 0:00:16.6]} 47... c2 {[%clk 0:00:17.6]} 48. Bd3
{[%clk 0:00:13.1]} 48... Nxd3 {[%clk 0:00:16.1]} 0-1

[Event "Early-Titled-Tuesday-Blitz-February-27-2024"]
[Site "Chess.com"]
[Date "2024.02.27"]
[Round "10"]
[White "tylityli"]
[Black "Aisen1011"]
[Result "0-1"]
[WhiteElo "2295"]
[BlackElo "2475"]
[TimeControl "180+1"]
[EndTime "9:55:22 PST"]
[Termination "Aisen1011 won on time"]

1. d4 {[%clk 0:03:00.9]} 1... d5 {[%clk 0:02:59.3]} 2. c4 {[%clk 0:03:01]} 2...
c6 {[%clk 0:02:59.7]} 3. cxd5 {[%clk 0:03:00.1]} 3... cxd5 {[%clk 0:03:00]} 4.
Bf4 {[%clk 0:03:00.7]} 4... Nf6 {[%clk 0:03:00.7]} 5. Nc3 {[%clk 0:02:59.4]}
5... Nc6 {[%clk 0:03:01]} 6. e3 {[%clk 0:02:59.1]} 6... a6 {[%clk 0:03:01.7]} 7.
Bd3 {[%clk 0:02:59.3]} 7... e6 {[%clk 0:02:59.1]} 8. Rc1 {[%clk 0:02:59.3]} 8...
Bd6 {[%clk 0:02:57.4]} 9. Bxd6 {[%clk 0:02:59.1]} 9... Qxd6 {[%clk 0:02:58.3]}
10. f4 {[%clk 0:03:00]} 10... b5 {[%clk 0:02:56.5]} 11. Nf3 {[%clk 0:03:00.4]}
11... Bb7 {[%clk 0:02:56.4]} 12. O-O {[%clk 0:03:00.2]} 12... Rc8 {[%clk
0:02:56.7]} 13. Ne5 {[%clk 0:03:00.4]} 13... O-O {[%clk 0:02:55]} 14. Rf3 {[%clk
0:02:53.4]} 14... b4 {[%clk 0:02:45.5]} 15. Na4 {[%clk 0:02:48.6]} 15... Ne4
{[%clk 0:02:43.6]} 16. Nc5 {[%clk 0:02:44.2]} 16... Nxc5 {[%clk 0:02:42.3]} 17.
Rxc5 {[%clk 0:02:40.4]} 17... Nxe5 {[%clk 0:02:37.8]} 18. fxe5 {[%clk 0:02:35]}
18... Qe7 {[%clk 0:02:27.4]} 19. Rxc8 {[%clk 0:02:02.3]} 19... Rxc8 {[%clk
0:02:16.9]} 20. Rf2 {[%clk 0:01:44.7]} 20... g6 {[%clk 0:02:12.6]} 21. Rc2
{[%clk 0:01:43.3]} 21... Kg7 {[%clk 0:01:51.6]} 22. Rxc8 {[%clk 0:01:33.2]}
22... Bxc8 {[%clk 0:01:52.5]} 23. Qc2 {[%clk 0:01:33.3]} 23... Bb7 {[%clk
0:01:51.1]} 24. g3 {[%clk 0:01:25.1]} 24... Qg5 {[%clk 0:01:50.6]} 25. Qf2
{[%clk 0:01:24.2]} 25... h5 {[%clk 0:01:47.5]} 26. Qf4 {[%clk 0:01:23]} 26...
Qd8 {[%clk 0:01:46.8]} 27. h4 {[%clk 0:01:14.5]} 27... Qa5 {[%clk 0:01:46.2]}
28. Qf6+ {[%clk 0:01:09.9]} 28... Kg8 {[%clk 0:01:46.3]} 29. Bxg6 {[%clk
0:00:51.2]} 29... fxg6 {[%clk 0:01:34.2]} 30. Qxg6+ {[%clk 0:00:51]} 30... Kf8
{[%clk 0:01:32.7]} 31. Qf6+ {[%clk 0:00:47.1]} 31... Ke8 {[%clk 0:01:11.1]} 32.
Qxe6+ {[%clk 0:00:43.8]} 32... Kd8 {[%clk 0:01:11.2]} 33. Qd6+ {[%clk
0:00:39.2]} 33... Kc8 {[%clk 0:01:11.4]} 34. Qf8+ {[%clk 0:00:24.8]} 34... Kc7
{[%clk 0:00:56.9]} 35. Qd6+ {[%clk 0:00:24.4]} 35... Kc8 {[%clk 0:00:57.3]} 36.
Qf8+ {[%clk 0:00:19.4]} 36... Qd8 {[%clk 0:00:54.2]} 37. Qxb4 {[%clk 0:00:14]}
37... Qg8 {[%clk 0:00:51.9]} 38. Kg2 {[%clk 0:00:11.4]} 38... Qg4 {[%clk
0:00:39.2]} 39. Qf8+ {[%clk 0:00:10.6]} 39... Kc7 {[%clk 0:00:39.2]} 40. Qd6+
{[%clk 0:00:10]} 40... Kc8 {[%clk 0:00:37.3]} 41. Qf8+ {[%clk 0:00:09.3]} 41...
Kd7 {[%clk 0:00:35.1]} 42. Qd6+ {[%clk 0:00:05.9]} 42... Ke8 {[%clk 0:00:33.1]}
43. Qb8+ {[%clk 0:00:05.7]} 43... Bc8 {[%clk 0:00:32.7]} 0-1

[Event "Early-Titled-Tuesday-Blitz-February-27-2024"]
[Site "Chess.com"]
[Date "2024.02.27"]
[Round "10"]
[White "FREDERICKtheMATE"]
[Black "RobertoJBM"]
[Result "1-0"]
[WhiteElo "2697"]
[BlackElo "2836"]
[TimeControl "180+1"]
[EndTime "9:55:25 PST"]
[Termination "FREDERICKtheMATE won on time"]

1. d4 {[%clk 0:03:00.9]} 1... d5 {[%clk 0:02:59.8]} 2. c4 {[%clk 0:03:00.8]}
2... c6 {[%clk 0:02:59.7]} 3. Nc3 {[%clk 0:03:00.2]} 3... dxc4 {[%clk
0:02:58.6]} 4. e4 {[%clk 0:02:57.4]} 4... b5 {[%clk 0:02:57.7]} 5. Nf3 {[%clk
0:02:57.8]} 5... a6 {[%clk 0:02:52.2]} 6. Be2 {[%clk 0:02:54.8]} 6... Nf6 {[%clk
0:02:49]} 7. a4 {[%clk 0:02:52.8]} 7... b4 {[%clk 0:02:47.1]} 8. e5 {[%clk
0:02:52.5]} 8... bxc3 {[%clk 0:02:45.9]} 9. exf6 {[%clk 0:02:51.3]} 9... cxb2
{[%clk 0:02:46.2]} 10. fxg7 {[%clk 0:02:51.2]} 10... bxa1=Q {[%clk 0:02:44.8]}
11. gxh8=Q {[%clk 0:02:50.9]} 11... Qa5+ {[%clk 0:02:43.2]} 12. Nd2 {[%clk
0:02:50.4]} 12... Be6 {[%clk 0:02:27.1]} 13. O-O {[%clk 0:02:48.4]} 13... Nd7
{[%clk 0:02:26.7]} 14. Nxc4 {[%clk 0:02:41.9]} 14... Q5xa4 {[%clk 0:02:22.2]}
15. Qxa4 {[%clk 0:02:27.7]} 15... Qxa4 {[%clk 0:02:23.1]} 16. Ne3 {[%clk
0:02:21.1]} 16... Nf6 {[%clk 0:02:09.4]} 17. d5 {[%clk 0:02:20.3]} 17... cxd5
{[%clk 0:02:05.3]} 18. Bb2 {[%clk 0:02:19.8]} 18... d4 {[%clk 0:01:52.3]} 19.
Bf3 {[%clk 0:02:02.3]} 19... Rc8 {[%clk 0:01:40]} 20. Ra1 {[%clk 0:01:46.5]}
20... Qb4 {[%clk 0:01:27.7]} 21. Bxd4 {[%clk 0:01:40.1]} 21... Qxd4 {[%clk
0:01:19.8]} 22. Rd1 {[%clk 0:01:40.6]} 22... Qh4 {[%clk 0:01:02.7]} 23. h3
{[%clk 0:01:36.5]} 23... Qh6 {[%clk 0:01:00.5]} 24. Bb7 {[%clk 0:01:16.8]} 24...
Rd8 {[%clk 0:00:57.7]} 25. Bc6+ {[%clk 0:01:16.2]} 25... Bd7 {[%clk 0:00:41.8]}
26. Nf5 {[%clk 0:01:09.4]} 26... Qg6 {[%clk 0:00:37.8]} 27. Nd6+ {[%clk
0:01:01.9]} 27... exd6 {[%clk 0:00:37.1]} 28. Re1+ {[%clk 0:01:01.7]} 28... Ne4
{[%clk 0:00:33.6]} 29. Rxe4+ {[%clk 0:01:01.7]} 29... Qxe4 {[%clk 0:00:31]} 30.
Bxe4 {[%clk 0:01:02.6]} 30... Be6 {[%clk 0:00:28.2]} 31. Bc6+ {[%clk 0:00:59.8]}
31... Ke7 {[%clk 0:00:28.1]} 32. Qxh7 {[%clk 0:00:58.5]} 32... Rc8 {[%clk
0:00:27.7]} 33. Qe4 {[%clk 0:00:56.5]} 33... Bg7 {[%clk 0:00:27]} 34. g3 {[%clk
0:00:51]} 34... a5 {[%clk 0:00:24.8]} 35. h4 {[%clk 0:00:47.4]} 35... Be5 {[%clk
0:00:20.7]} 36. f4 {[%clk 0:00:45.3]} 36... f5 {[%clk 0:00:17.5]} 37. Qa4 {[%clk
0:00:42.4]} 37... Bc3 {[%clk 0:00:15.6]} 38. Qb5 {[%clk 0:00:36.6]} 38... Rc7
{[%clk 0:00:14.9]} 39. h5 {[%clk 0:00:29.7]} 39... d5 {[%clk 0:00:05.1]} 40.
Bxd5 {[%clk 0:00:25.3]} 40... Bd4+ {[%clk 0:00:05.6]} 41. Kg2 {[%clk 0:00:24.5]}
41... Rc2+ {[%clk 0:00:05.1]} 42. Kf1 {[%clk 0:00:24.1]} 42... Bd7 {[%clk
0:00:04.6]} 43. Qxa5 {[%clk 0:00:21.7]} 43... Bc5 {[%clk 0:00:02.8]} 44. Qe1+
{[%clk 0:00:20.2]} 44... Kd8 {[%clk 0:00:02.9]} 45. Qe5 {[%clk 0:00:19.3]} 45...
Bb5+ {[%clk 0:00:01.8]} 46. Ke1 {[%clk 0:00:19.3]} 1-0